bitfinex/quotes_SOLUSD_20251002
["timestamp","ask_amount","ask_price","bid_price","bid_amount"]
[1759401663038,53.29215751,225.48,225.47,1e-08]
[1759401663341,55.60591169,225.48,225.47,1e-08]
[1759401663636,53.29215751,225.48,225.47,1e-08]
[1759401664427,10.87647521,225.44,225.34,4.43767418]
[1759401664632,163.87999999,225.43,225.35,0.65]
[1759401666045,4.4361636,225.42,225.36,4.43734469]
[1759401666346,30.98,225.41,225.37,0.65]
[1759401666718,4.4361636,225.42,225.37,0.65]
[1759401666918,30.98,225.41,225.37,0.65]
[1759401667145,4.4361636,225.42,225.37,0.65]
[1759401667344,30.98,225.41,225.37,0.65]
[1759401668439,4.4361636,225.42,225.37,0.65]
[1759401668639,30.98,225.41,225.37,0.65]
[1759401669020,35.41641601,225.41,225.37,0.65]
[1759401675451,4.43616709,225.42,225.37,5.087127]
[1759401675749,31.0,225.4,225.38,0.65]
[1759401676054,4.43616709,225.42,225.39,0.65]
[1759401676234,30.98,225.41,225.39,0.65]
[1759401677360,4.43655723,225.4,225.39,0.65]
[1759401677647,4.43655723,225.4,225.37,0.65]
[1759401677858,31.0,225.39,225.37,0.65]
[1759401678024,31.0,225.39,225.34,21.45]
[1759401678228,31.25,225.39,225.34,0.65]
[1759401678452,31.0,225.39,225.35,0.65]
[1759401679154,31.0,225.39,225.32,21.45]
[1759401679155,0.25,225.38,225.32,21.45]
[1759401679338,4.43734469,225.36,225.31,20.8]
[1759401679650,4.43734469,225.36,225.32,0.65]
[1759401679856,30.98,225.35,225.32,0.65]
[1759401680159,4.43734469,225.36,225.32,0.65]
[1759401680344,30.98,225.34,225.32,0.65]
[1759401680870,35.41791126,225.34,225.32,0.65]
[1759401684357,35.41791126,225.34,225.3,0.92]
[1759401684549,35.41791126,225.34,225.31,0.72]
[1759401684854,35.41791126,225.34,225.3,0.2]
[1759401685160,30.98,225.34,225.32,0.72]
[1759401685355,30.98,225.34,225.3,4.63851583]
[1759401685562,30.98,225.34,225.31,0.72]
[1759401687063,12.65342374,225.39,225.31,5.15821018]
[1759401687261,10.87647521,225.37,225.32,0.72]
[1759401687435,132.89999999,225.38,225.32,0.72]
[1759401687637,31.0,225.37,225.32,0.72]
[1759401689144,31.0,225.36,225.32,5.15793891]
[1759401689460,31.0,225.36,225.33,0.72]
[1759401690450,132.89999999,225.38,225.33,5.15790973]
[1759401690763,31.0,225.37,225.33,5.15790973]
[1759401690963,31.0,225.37,225.34,0.72]
[1759401691337,31.0,225.36,225.34,0.72]
[1759401691740,132.89999999,225.38,225.32,0.72]
[1759401691951,31.0,225.37,225.32,0.72]
[1759401692438,31.0,225.37,225.31,25.23832941]
[1759401692642,31.0,225.37,225.33,0.72]
[1759401692952,31.0,225.37,225.32,20.8]
[1759401693263,31.0,225.37,225.33,0.72]
[1759401693450,31.0,225.37,225.34,0.72]
[1759401694161,132.89999999,225.38,225.35,0.72]
[1759401694366,31.0,225.37,225.35,0.72]
[1759401695455,31.0,225.36,225.32,4.43813243]
[1759401695646,31.0,225.35,225.33,0.72]
[1759401697162,132.89999999,225.38,225.33,0.72]
[1759401697478,31.0,225.37,225.33,0.72]
[1759401697646,31.0,225.37,225.33,5.15778994]
[1759401697845,31.0,225.37,225.34,0.72]
[1759401698070,31.0,225.37,225.33,4.43778994]
[1759401698275,31.0,225.37,225.34,0.72]
[1759401698477,31.0,225.37,225.35,0.72]
[1759401699356,31.0,225.36,225.35,0.72]
[1759401699557,132.89999999,225.38,225.34,4.4377121]
[1759401699762,30.98,225.36,225.34,4.4377121]
[1759401700057,132.89999999,225.38,225.34,4.4377121]
[1759401700248,30.98,225.37,225.34,0.72]
[1759401700571,30.98,225.36,225.32,5.15794417]
[1759401700770,30.98,225.36,225.33,0.72]
[1759401701152,30.98,225.35,225.33,0.72]
[1759401701471,137.5869686,225.38,225.34,0.72]
[1759401701651,30.98,225.37,225.34,0.72]
[1759401702571,30.98,225.36,225.32,0.72]
[1759401704668,30.98,225.35,225.33,4.43793547]
[1759401704982,137.33695617,225.38,225.33,4.43793547]
[1759401705160,30.98,225.37,225.33,4.43793547]
[1759401705363,30.98,225.36,225.33,0.72]
[1759401705964,30.98,225.35,225.34,0.72]
[1759401708074,30.98,225.35,225.33,4.43778811]
[1759401708280,30.98,225.35,225.33,5.15778811]
[1759401708882,30.98,225.35,225.34,0.72]
[1759401709774,30.98,225.35,225.32,0.72]
[1759401710378,30.98,225.35,225.33,0.72]
[1759401711176,30.98,225.35,225.33,5.15792239]
[1759401714476,30.98,225.35,225.34,0.67]
[1759401716184,132.89999999,225.38,225.34,5.10773852]
[1759401716368,30.98,225.37,225.34,5.10773852]
[1759401716561,30.98,225.37,225.35,0.67]
[1759401717279,30.98,225.37,225.33,0.67]
[1759401717479,30.98,225.37,225.34,0.67]
[1759401717665,30.98,225.37,225.32,11.09525776]
[1759401717866,30.98,225.37,225.33,0.67]
[1759401718075,30.98,225.37,225.32,11.09525776]
[1759401718275,132.89999999,225.38,225.34,0.67]
[1759401718276,30.98,225.36,225.34,0.67]
[1759401718477,30.98,225.36,225.35,0.67]
[1759401719482,30.98,225.36,225.32,11.09525776]
[1759401719483,30.98,225.36,225.34,4.43773817]
[1759401719682,30.98,225.36,225.34,5.10773817]
[1759401719986,30.98,225.36,225.33,4.43791611]
[1759401720292,30.98,225.36,225.33,5.10791611]
[1759401720494,30.98,225.36,225.33,4.43791611]
[1759401720665,30.98,225.36,225.33,5.10791611]
[1759401721175,30.98,225.35,225.33,5.10791611]
[1759401721379,30.98,225.35,225.34,0.67]
[1759401721590,30.98,225.35,225.33,4.43791611]
[1759401721973,30.98,225.35,225.33,5.10791611]
[1759401722593,30.98,225.35,225.34,0.67]
[1759401723200,30.98,225.35,225.33,4.43791611]
[1759401723410,30.98,225.35,225.31,4.43814917]
[1759401723576,30.98,225.34,225.31,5.10814917]
[1759401725206,31.23,225.34,225.3,21.0]
[1759401725379,31.23,225.34,225.3,21.67]
[1759401725380,30.98,225.34,225.3,21.67]
[1759401725582,31.23,225.34,225.3,21.0]
[1759401726293,31.23,225.34,225.3,25.43850536]
[1759401727096,30.98,225.34,225.3,25.43850536]
[1759401727304,30.98,225.33,225.32,20.8]
[1759401728698,13.32711401,225.37,225.31,25.23823712]
[1759401728899,30.98,225.36,225.31,25.23823712]
[1759401729104,31.23,225.36,225.31,25.90823712]
[1759401731206,4.68738167,225.36,225.31,25.90823712]
[1759401731410,30.98,225.35,225.31,25.90823712]
[1759401732407,4.43738167,225.36,225.32,0.67]
[1759401732608,30.98,225.35,225.32,5.10801314]
[1759401732836,30.98,225.35,225.33,0.67]
[1759401733410,30.98,225.34,225.33,0.67]
[1759401734004,132.89999999,225.38,225.33,0.67]
[1759401734205,13.32533813,225.4,225.33,21.47]
[1759401734411,30.98,225.39,225.35,4.4375416]
[1759401734713,30.98,225.38,225.36,0.67]
[1759401735507,30.98,225.37,225.36,5.10734469]
[1759401735823,30.98,225.37,225.36,0.67]
[1759401738492,31.23,225.37,225.33,20.8]
[1759401738999,35.4171789,225.37,225.33,20.8]
[1759401740734,35.4171789,225.37,225.33,21.47]
[1759401741816,13.32593003,225.4,225.34,0.67]
[1759401742119,30.96,225.42,225.35,20.8]
[1759401742428,30.96,225.42,225.36,0.67]
[1759401743201,30.96,225.42,225.37,4.4371478]
[1759401743409,30.96,225.42,225.38,0.69]
[1759401743610,30.96,225.42,225.39,0.69]
[1759401743817,30.96,225.42,225.4,0.72]
[1759401744524,132.89999999,225.44,225.4,0.72]
[1759401744722,30.96,225.43,225.4,0.72]
[1759401745310,30.96,225.43,225.4,5.15646669]
[1759401745626,132.89999999,225.44,225.41,0.72]
[1759401746613,163.85999999,225.44,225.41,0.72]
[1759401746818,132.89999999,225.49,225.41,0.72]
[1759401747121,30.96,225.48,225.41,0.72]
[1759401747321,30.96,225.48,225.42,4.4361636]
[1759401747523,30.96,225.47,225.43,0.72]
[1759401748218,30.96,225.47,225.44,4.43577004]
[1759401748417,30.96,225.47,225.44,5.15577004]
[1759401748797,11.12647521,225.46,225.4,20.8]
[1759401749006,10.87647521,225.44,225.33,5.15793547]
[1759401749203,0.25,225.43,225.33,5.15793547]
[1759401749501,0.25,225.42,225.36,20.8]
[1759401749709,30.96,225.41,225.36,20.8]
[1759401749916,31.21,225.41,225.36,20.8]
[1759401750216,30.96,225.41,225.37,0.72]
[1759401750418,0.25,225.44,225.38,0.72]
[1759401750632,146.22415446,225.45,225.38,0.72]
[1759401750831,132.89999999,225.45,225.38,0.72]
[1759401751008,30.96,225.44,225.38,0.72]
[1759401751523,132.89999999,225.45,225.38,0.72]
[1759401751714,30.96,225.44,225.38,0.72]
[1759401751907,132.89999999,225.45,225.38,0.72]
[1759401752110,30.96,225.44,225.39,4.43675407]
[1759401752320,30.96,225.44,225.4,0.72]
[1759401752513,30.96,225.44,225.41,0.72]
[1759401752712,30.96,225.44,225.39,5.15675407]
[1759401753022,30.96,225.44,225.4,0.72]
[1759401753202,30.96,225.44,225.4,5.15641527]
[1759401753730,30.96,225.43,225.4,5.15641527]
[1759401753925,132.89999999,225.45,225.4,5.15641527]
[1759401754227,30.96,225.44,225.4,0.72]
[1759401755024,30.96,225.44,225.41,0.72]
[1759401755227,30.96,225.44,225.39,5.15674853]
[1759401755526,30.96,225.44,225.4,0.72]
[1759401755724,0.25,225.43,225.36,21.52]
[1759401755929,30.96,225.42,225.37,20.8]
[1759401756226,31.21,225.42,225.37,20.8]
[1759401756529,35.64621646,225.42,225.37,20.8]
[1759401756829,35.64621646,225.42,225.37,21.52]
[1759401757617,35.39621646,225.42,225.37,21.52]
[1759401758130,35.39621646,225.42,225.37,20.8]
[1759401758308,35.39621646,225.42,225.37,21.52]
[1759401759304,35.39621646,225.42,225.38,0.72]
[1759401760411,35.39621646,225.42,225.37,20.8]
[1759401760614,35.39621646,225.42,225.37,21.52]
[1759401763414,35.39621646,225.42,225.38,0.72]
[1759401767437,30.96,225.42,225.39,0.72]
[1759401767625,35.39616639,225.42,225.37,0.72]
[1759401768025,35.39616639,225.42,225.36,20.8]
[1759401768212,35.39616639,225.42,225.38,0.72]
[1759401768409,35.39616639,225.42,225.36,21.52]
[1759401768734,0.25,225.41,225.37,20.8]
[1759401768924,0.25,225.4,225.37,20.8]
[1759401769112,30.96,225.39,225.37,20.8]
[1759401769715,30.96,225.39,225.37,0.72]
[1759401769935,30.96,225.4,225.38,0.72]
[1759401770120,30.96,225.4,225.37,20.8]
[1759401770327,30.96,225.4,225.36,20.8]
[1759401770521,30.96,225.4,225.38,0.72]
[1759401770730,4.43596424,225.44,225.39,0.72]
[1759401771034,4.43596424,225.44,225.36,20.8]
[1759401771035,30.96,225.43,225.4,0.72]
[1759401771237,30.96,225.43,225.36,20.8]
[1759401771538,30.96,225.43,225.41,0.72]
[1759401772637,4.43596424,225.44,225.41,0.72]
[1759401772933,30.96,225.42,225.41,0.72]
[1759401773127,4.43596424,225.44,225.41,0.72]
[1759401773329,30.96,225.43,225.41,0.72]
[1759401773536,30.96,225.42,225.41,0.72]
[1759401775430,132.89999999,225.45,225.41,0.72]
[1759401775634,30.96,225.44,225.41,0.72]
[1759401775944,30.96,225.45,225.41,5.15624349]
[1759401776144,30.96,225.45,225.42,0.68]
[1759401776324,4.43478646,225.49,225.42,0.68]
[1759401776523,30.96,225.48,225.42,0.68]
[1759401776834,30.96,225.47,225.42,0.68]
[1759401777151,30.96,225.47,225.42,5.1161191]
[1759401777448,35.39523372,225.47,225.43,0.68]
[1759401778345,30.96,225.46,225.43,0.68]
[1759401778548,30.96,225.46,225.41,20.8]
[1759401778850,4.68523372,225.47,225.42,0.68]
[1759401778851,30.96,225.45,225.42,0.68]
[1759401779332,30.96,225.45,225.43,0.68]
[1759401780118,35.64557925,225.45,225.39,5.11675407]
[1759401780343,35.39557925,225.45,225.39,5.11675407]
[1759401780565,35.39557925,225.45,225.4,0.68]
[1759401781251,35.39557925,225.45,225.4,5.11654064]
[1759401781437,35.39557925,225.45,225.41,0.68]
[1759401781753,35.39557925,225.45,225.42,0.68]
[1759401783628,30.96,225.45,225.42,4.43613786]
[1759401783950,0.25,225.44,225.33,0.68]
[1759401784256,10.87647521,225.4,225.31,0.68]
[1759401784435,30.94,225.39,225.31,0.68]
[1759401785249,31.19,225.39,225.33,20.8]
[1759401785451,4.43695092,225.38,225.32,0.68]
[1759401786452,30.94,225.37,225.32,0.68]
[1759401786656,30.94,225.37,225.35,20.8]
[1759401786850,0.25,225.39,225.35,20.8]
[1759401787060,30.94,225.38,225.35,20.8]
[1759401787239,35.37696253,225.38,225.33,0.68]
[1759401787756,35.62696253,225.38,225.33,0.68]
[1759401788144,35.37696253,225.38,225.31,0.68]
[1759401788461,35.62696253,225.38,225.31,0.68]
[1759401788635,35.62696253,225.38,225.33,20.8]
[1759401789036,0.25,225.37,225.33,20.8]
[1759401790345,4.43734469,225.36,225.33,20.8]
[1759401790546,30.94,225.35,225.31,25.91831986]
[1759401790773,30.94,225.35,225.32,0.68]
[1759401791152,30.94,225.35,225.33,0.68]
[1759401791769,30.94,225.35,225.34,0.68]
[1759401793065,4.43696564,225.38,225.34,0.68]
[1759401793356,30.94,225.37,225.34,0.68]
[1759401798165,4.43675407,225.39,225.34,0.68]
[1759401798340,30.96,225.38,225.34,0.68]
[1759401800159,4.43675407,225.39,225.34,0.68]
[1759401800382,35.39706367,225.38,225.34,0.68]
[1759401801359,35.64706367,225.38,225.32,0.68]
[1759401802660,0.25,225.37,225.32,0.68]
[1759401803162,30.96,225.36,225.32,0.68]
[1759401803773,35.39747937,225.36,225.32,0.68]
[1759401804071,35.39747937,225.36,225.33,0.66]
[1759401804563,35.39747937,225.36,225.31,21.46]
[1759401804870,35.39747937,225.36,225.32,0.66]
[1759401805042,35.39747937,225.36,225.33,0.66]
[1759401809472,30.96,225.36,225.33,0.66]
[1759401809778,30.96,225.36,225.34,0.66]
[1759401811878,30.94,225.35,225.34,0.66]
[1759401812553,30.94,225.35,225.32,5.09796711]
[1759401812879,30.94,225.35,225.33,0.66]
[1759401813457,30.94,225.35,225.31,21.46]
[1759401813657,4.68716648,225.37,225.32,0.66]
[1759401813981,30.94,225.35,225.32,0.66]
[1759401814477,30.94,225.34,225.33,20.8]
[1759401816882,35.37773852,225.34,225.32,20.8]
[1759401817483,35.62773852,225.34,225.3,21.0]
[1759401818274,35.37773852,225.34,225.3,21.0]
[1759401818486,35.37773852,225.34,225.3,21.66]
[1759401818670,30.94,225.34,225.32,20.8]
[1759401819456,35.37781012,225.34,225.32,20.8]
[1759401819883,30.94,225.33,225.32,20.8]
[1759401820198,30.94,225.33,225.3,0.86]
[1759401822984,35.37795331,225.33,225.31,20.8]
[1759401824156,30.94,225.33,225.31,20.8]
[1759401824364,30.94,225.33,225.32,20.8]
[1759401824988,30.94,225.33,225.32,0.66]
[1759401825589,30.94,225.33,225.32,20.8]
[1759401825883,30.94,225.33,225.32,0.66]
[1759401827789,4.43765109,225.35,225.31,21.46]
[1759401828087,30.94,225.34,225.31,21.46]
[1759401828880,30.94,225.33,225.32,20.8]
[1759401831288,30.94,225.33,225.3,0.2]
[1759401831495,30.94,225.33,225.31,20.8]
[1759401832576,30.94,225.33,225.3,0.86]
[1759401839094,30.94,225.33,225.31,20.8]
[1759401839284,30.94,225.33,225.31,21.46]
[1759401840599,30.94,225.33,225.3,0.2]
[1759401840813,0.25,225.32,225.3,0.2]
[1759401841093,30.94,225.31,225.3,0.86]
[1759401841471,30.94,225.31,225.3,0.2]
[1759401841679,2.02710642,225.35,225.3,0.2]
[1759401841680,1.77710642,225.35,225.3,0.86]
[1759401841885,30.94,225.34,225.31,0.66]
[1759401842191,4.43734469,225.36,225.32,0.66]
[1759401842393,7.42780808,225.38,225.33,0.66]
[1759401842605,32.71694853,225.37,225.33,0.66]
[1759401843000,30.94,225.37,225.34,0.66]
[1759401845604,4.43675182,225.4,225.35,0.66]
[1759401845811,4.43675182,225.4,225.33,4.43785933]
[1759401845812,30.94,225.39,225.36,0.66]
[1759401847387,4.43638625,225.41,225.37,0.66]
[1759401847602,30.94,225.4,225.37,0.66]
[1759401849915,15.31263881,225.42,225.37,0.66]
[1759401850108,4.6861636,225.42,225.37,0.66]
[1759401850411,15.31263881,225.42,225.37,0.66]
[1759401850624,7.42625006,225.43,225.37,5.09713954]
[1759401850812,30.94,225.42,225.38,0.66]
[1759401851113,30.94,225.42,225.37,25.23713954]
[1759401851114,30.94,225.42,225.39,0.66]
[1759401851315,30.94,225.41,225.39,0.66]
[1759401851613,30.94,225.41,225.37,0.66]
[1759401851821,30.94,225.4,225.38,20.8]
[1759401852416,30.94,225.4,225.37,21.46]
[1759401852801,30.94,225.4,225.38,0.66]
[1759401860338,30.94,225.4,225.35,0.66]
[1759401860619,30.94,225.4,225.36,20.8]
[1759401860831,35.62656303,225.4,225.36,20.8]
[1759401861049,30.94,225.4,225.37,0.66]
[1759401864630,4.68617963,225.42,225.37,0.66]
[1759401864813,30.92,225.41,225.37,0.66]
[1759401865823,4.43596681,225.43,225.36,25.23724928]
[1759401866009,30.92,225.42,225.38,0.71]
[1759401867312,4.43596681,225.43,225.37,4.43711044]
[1759401867313,4.43596681,225.43,225.39,0.71]
[1759401867516,30.92,225.42,225.39,0.71]
[1759401867715,30.92,225.42,225.38,0.71]
[1759401868730,30.92,225.42,225.39,0.71]
[1759401868921,30.92,225.42,225.37,5.14711044]
[1759401869122,30.92,225.42,225.38,0.71]
[1759401869509,35.35618244,225.42,225.38,0.71]
[1759401870133,35.60618244,225.42,225.35,25.23744351]
[1759401870319,0.25,225.41,225.35,25.23744351]
[1759401870628,4.68651562,225.41,225.36,0.71]
[1759401870825,4.68651562,225.41,225.35,20.8]
[1759401871128,4.68651562,225.41,225.37,0.71]
[1759401871325,4.68651562,225.41,225.35,21.51]
[1759401871531,4.68651562,225.41,225.36,0.71]
[1759401871700,4.68651562,225.41,225.37,0.71]
[1759401873331,4.43651562,225.41,225.37,0.71]
[1759401874028,4.68651562,225.41,225.37,0.71]
[1759401874213,4.43651562,225.41,225.37,0.71]
[1759401874631,4.68651562,225.41,225.36,5.14730216]
[1759401874835,4.68651562,225.41,225.36,4.43730216]
[1759401875135,35.35619786,225.42,225.37,0.71]
[1759401875342,35.60619786,225.42,225.37,0.71]
[1759401877237,35.35619786,225.42,225.37,0.71]
[1759401877421,35.60619786,225.42,225.37,0.71]
[1759401878310,4.68636382,225.41,225.36,5.14730216]
[1759401878511,4.43636382,225.41,225.35,20.8]
[1759401878730,0.25,225.4,225.35,21.51]
[1759401879009,30.92,225.39,225.35,21.51]
[1759401879210,30.92,225.39,225.36,0.71]
[1759401879412,30.92,225.39,225.35,20.8]
[1759401879747,30.92,225.39,225.37,0.71]
[1759401882638,30.92,225.39,225.36,4.43731321]
[1759401882818,30.92,225.39,225.36,5.14731321]
[1759401883720,4.43666858,225.4,225.37,20.8]
[1759401884016,30.92,225.39,225.37,20.8]
[1759401885526,30.92,225.39,225.37,21.51]
[1759401888142,30.92,225.39,225.38,0.71]
[1759401888344,30.92,225.39,225.37,21.51]
[1759401888919,30.92,225.38,225.37,4.43714372]
[1759401889428,30.92,225.38,225.37,5.14714372]
[1759401890236,30.92,225.39,225.37,5.14714372]
[1759401890430,30.92,225.39,225.37,0.71]
[1759401894134,30.92,225.39,225.36,0.69]
[1759401894834,30.92,225.39,225.37,0.69]
[1759401895747,30.92,225.39,225.38,0.69]
[1759401896630,30.92,225.39,225.34,4.43773852]
[1759401896836,30.92,225.39,225.36,4.43734469]
[1759401897037,30.92,225.39,225.37,0.69]
[1759401898554,4.43621843,225.42,225.38,0.69]
[1759401898731,30.9,225.39,225.38,0.69]
[1759401899560,2.99257883,225.43,225.38,0.69]
[1759401899844,30.9,225.42,225.38,21.49]
[1759401900155,2.99257883,225.44,225.39,0.69]
[1759401900345,30.9,225.43,225.39,0.69]
[1759401900734,2.99257883,225.44,225.39,5.12665357]
[1759401901052,163.79999999,225.45,225.42,20.8]
[1759401901229,30.9,225.45,225.43,0.69]
[1759401901428,30.9,225.45,225.42,20.8]
[1759401901429,30.9,225.45,225.44,0.69]
[1759401901852,30.9,225.45,225.43,0.69]
[1759401902751,30.9,225.45,225.42,20.8]
[1759401902952,30.9,225.45,225.43,0.69]
[1759401903532,30.9,225.45,225.44,0.69]
[1759401904648,30.9,225.45,225.42,20.8]
[1759401904649,35.58560822,225.45,225.3,85.1998947]
[1759401904847,133.14999999,225.44,225.36,0.69]
[1759401905237,3.24000869,225.43,225.36,0.69]
[1759401905440,31.15,225.42,225.36,0.69]
[1759401905757,0.25,225.41,225.36,21.49]
[1759401906154,4.43655723,225.4,225.37,20.8]
[1759401906344,30.9,225.39,225.37,20.8]
[1759401909839,0.25,225.38,225.33,21.49]
[1759401910348,46.42875397,225.39,225.33,20.8]
[1759401910548,46.67875397,225.39,225.33,21.49]
[1759401911265,0.25,225.38,225.33,20.8]
[1759401911436,48.74703356,225.39,225.33,20.8]
[1759401911643,0.25,225.37,225.33,20.8]
[1759401911940,35.33734469,225.36,225.33,20.8]
[1759401914061,35.33734469,225.36,225.31,0.69]
[1759401914062,35.58734469,225.36,225.31,0.69]
[1759401914440,35.33734469,225.36,225.32,0.69]
[1759401914861,132.89999999,225.38,225.33,21.49]
[1759401915049,30.9,225.38,225.34,0.69]
[1759401915952,2.98807668,225.42,225.34,0.69]
[1759401916165,30.9,225.41,225.35,4.4375416]
[1759401916466,30.9,225.41,225.36,0.69]
[1759401916779,30.9,225.41,225.37,0.69]
[1759401918790,35.33649363,225.41,225.37,0.69]
[1759401919984,30.9,225.42,225.38,0.69]
[1759401920687,30.9,225.42,225.39,0.69]
[1759401920869,30.9,225.42,225.37,0.69]
[1759401920870,35.33618662,225.42,225.37,0.69]
[1759401921071,35.33618662,225.42,225.38,0.69]
[1759401921689,0.25,225.41,225.35,0.69]
[1759401921988,30.9,225.4,225.35,0.69]
[1759401922495,30.9,225.4,225.34,25.23771227]
[1759401922800,30.9,225.4,225.36,0.69]
[1759401923584,4.43675407,225.39,225.36,0.69]
[1759401924167,4.43675407,225.39,225.34,21.49]
[1759401924466,4.43675407,225.39,225.35,0.69]
[1759401924666,0.25,225.38,225.32,0.69]
[1759401924886,30.9,225.37,225.32,0.69]
[1759401925184,31.15,225.37,225.33,20.8]
[1759401925690,30.9,225.37,225.33,21.49]
[1759401925870,30.9,225.37,225.34,0.69]
[1759401926069,30.9,225.37,225.35,0.69]
[1759401928020,30.9,225.37,225.33,0.69]
[1759401928187,30.9,225.37,225.34,0.69]
[1759401928865,35.33716741,225.37,225.32,20.8]
[1759401929071,35.33716741,225.37,225.32,0.69]
[1759401929072,4.68716741,225.37,225.32,0.69]
[1759401929270,30.9,225.36,225.32,0.69]
[1759401929987,35.33736775,225.36,225.3,25.43836331]
[1759401930177,35.33736775,225.36,225.33,0.69]
[1759401930690,30.9,225.36,225.34,0.69]
[1759401932881,30.9,225.36,225.35,0.69]
[1759401933673,4.43655723,225.4,225.35,0.69]
[1759401933882,30.9,225.39,225.36,0.69]
[1759401934082,30.9,225.39,225.34,0.69]
[1759401934275,31.15,225.39,225.33,4.43785309]
[1759401934463,31.15,225.39,225.34,0.69]
[1759401935797,35.58687688,225.39,225.34,0.69]
[1759401937200,4.68687688,225.39,225.34,0.69]
[1759401937369,30.9,225.38,225.34,0.69]
[1759401938763,35.33701287,225.38,225.34,0.69]
[1759401945889,30.9,225.38,225.35,0.69]
[1759401946393,30.9,225.38,225.36,0.69]
[1759401946574,13.32474627,225.4,225.37,0.69]
[1759401946772,132.89999999,225.41,225.38,0.69]
[1759401947000,30.9,225.4,225.38,0.69]
[1759401947186,30.9,225.4,225.36,0.69]
[1759401947385,30.9,225.4,225.37,0.69]
[1759401948591,30.9,225.4,225.36,4.43722397]
[1759401948791,30.9,225.4,225.38,0.69]
[1759401949000,30.9,225.4,225.36,4.43722397]
[1759401949198,30.9,225.4,225.37,0.69]
[1759401951496,30.9,225.4,225.38,0.69]
[1759401952508,30.9,225.4,225.36,0.69]
[1759401952811,30.9,225.4,225.37,0.69]
[1759401953108,132.89999999,225.41,225.37,0.69]
[1759401953519,0.25,225.48,225.4,20.8]
[1759401953700,31.13,225.47,225.41,0.69]
[1759401956310,4.43537656,225.46,225.41,5.12631121]
[1759401956490,30.88,225.45,225.42,0.66]
[1759401957999,30.88,225.45,225.4,25.23651992]
[1759401958196,30.88,225.45,225.41,0.66]
[1759401958598,30.88,225.45,225.4,25.23651992]
[1759401958806,30.88,225.45,225.42,0.66]
[1759401959305,4.43537656,225.46,225.42,0.66]
[1759401959505,30.88,225.45,225.42,0.66]
[1759401960105,35.31558248,225.45,225.42,0.66]
[1759401960422,4.43558248,225.45,225.42,0.66]
[1759401960620,0.25,225.44,225.39,0.66]
[1759401961003,0.25,225.43,225.39,0.66]
[1759401961315,0.25,225.43,225.38,20.8]
[1759401961510,31.13,225.42,225.36,0.66]
[1759401961709,31.13,225.42,225.36,21.46]
[1759401962219,4.4363604,225.41,225.37,0.66]